{"text_format":"1","workbook":"xlsx","n_sheets":1,"sheets":["Modèle"],"not_rendered":{"charts":0,"images":0,"macros":1,"external_links":0,"defined_names":3,"comments":0,"pivot_tables":0},"unopened":[],"bounds":{"document_bytes":16777216,"sheet_cells":100000,"rows_first":2000,"rows_last":500,"rows_between":2000,"halvings":0,"cell_chars":16384,"cell_head_chars":4096},"cells_cut":0,"cells_raw":0,"read":"whole","date_system":"1900"}

{"sheet":"Modèle","index":0,"n_rows":69,"n_cols":99,"rows_kept":69,"cut":false,"hidden":false,"merged":[[56,1,59,1],[60,1,63,1],[64,1,67,1],[68,1,71,1],[44,1,47,1],[48,1,51,1],[52,1,55,1],[1,1,1,2],[2,2,3,2],[4,2,5,2],[6,2,7,2],[8,2,9,2],[28,2,29,2],[42,2,42,5],[10,2,11,2],[12,2,13,2],[14,2,15,2],[16,2,17,2],[26,2,27,2],[18,2,19,2],[20,2,21,2],[22,2,23,2],[24,2,25,2]]}
["2015-05-26",null,null,"Jean","Paul","Pierre","Alain","Michel","Louise","Marie","Jeanne","Nouveau"]
[null,"fonction",null,null,null,null,null,null,null,"apprenti","apprenti","Nouveau","plage","Présents",null,null,null,null,null,null,null,null,null,null,null,null,null,null,null,null,null,null,null,null,null,null,null,null,null,null,null,null,null,null,null,null,null,null,null,null,null,null,null,null,null,null,null,null,null,null,null,null,null,null,null,null,null,null,null,null,null,null,null,null,null,null,null,null,null,null,null,null,null,null,null,null,null,null,null,null,null,null,null,null,null,null,null,"00:00:00","15:00:00"]
[{"$f":"\"Semaine actuelle n° \"&INT(MOD(INT((A1-2)/7)+0.6,52+5/28))+1","v":"Semaine actuelle n° 22"},null,"matin","Repos","Repos","Repos",0.27083333333333298,0.375,"Repos",0.29166666666666702,"Repos",null,"08:00:00",null,null,null,null,null,null,null,null,null,null,null,null,null,null,null,null,null,null,null,null,null,null,null,null,null,null,null,null,null,null,null,null,null,null,null,null,null,null,null,null,null,null,null,null,null,null,null,null,null,null,null,null,null,null,null,null,null,null,null,null,null,null,null,null,null,null,null,null,null,null,null,null,null,null,null,null,null,null,null,null,null,null,null,null,"00:30:00","15:30:00"]
[null,{"$f":"$A$1-WEEKDAY($A$1-1)+8","v":"2015-06-01"},null,"Repos","Repos","Repos",0.4375,0.66666666666666596,"Repos",0.45833333333333298,"Repos",null,"10:00:00",{"$f":"SUMPRODUCT(($M3>=$D3:$K3)*(L4<=$D4:$K4))","v":2},null,null,null,null,null,null,null,null,null,null,null,null,null,null,null,null,null,null,null,null,null,null,null,null,null,null,null,null,null,null,null,null,null,null,null,null,null,null,null,null,null,null,null,null,null,null,null,null,null,null,null,null,null,null,null,null,null,null,null,null,null,null,null,null,null,null,null,null,null,null,null,null,null,null,null,null,null,null,null,null,null,null,null,"01:00:00","16:00:00"]
[null,null,"soir","Repos","Repos","Repos","Repos","Repos","Repos",0.72916666666666663,"Repos",null,"17:00:00",null,null,null,null,null,null,null,null,null,null,null,null,null,null,null,null,null,null,null,null,null,null,null,null,null,null,null,null,null,null,null,null,null,null,null,null,null,null,null,null,null,null,null,null,null,null,null,null,null,null,null,null,null,null,null,null,null,null,null,null,null,null,null,null,null,null,null,null,null,null,null,null,null,null,null,null,null,null,null,null,null,null,null,null,"01:30:00","16:30:00"]
[null,null,null,"Repos","Repos","Repos","Repos","Repos","Repos",0.91666666666666696,"Repos",null,"22:00:00",{"$f":"SUMPRODUCT(($M5>=$D5:$K5)*(L6<=$D6:$K6))","v":0},null,null,null,null,null,null,null,null,null,null,null,null,null,null,null,null,null,null,null,null,null,null,null,null,null,null,null,null,null,null,null,null,null,null,null,null,null,null,null,null,null,null,null,null,null,null,null,null,null,null,null,null,null,null,null,null,null,null,null,null,null,null,null,null,null,null,null,null,null,null,null,null,null,null,null,null,null,null,null,null,null,null,null,"02:00:00","17:00:00"]
[null,null,"matin",0.33333333333333298,"Repos","Repos",0.41666666666666702,0.41666666666666702,0.41666666666666702,"Repos","Repos",null,"12:00:00",null,null,null,null,null,null,null,null,null,null,null,null,null,null,null,null,null,null,null,null,null,null,null,null,null,null,null,null,null,null,null,null,null,null,null,null,null,null,null,null,null,null,null,null,null,null,null,null,null,null,null,null,null,null,null,null,null,null,null,null,null,null,null,null,null,null,null,null,null,null,null,null,null,null,null,null,null,null,null,null,null,null,null,null,"02:30:00","17:30:00"]
[null,{"$f":"B4+1","v":"2015-06-02"},null,0.58333333333333304,"Repos","Repos",0.58333333333333304,0.58333333333333304,0.58333333333333304,"Repos","Repos",null,"14:00:00",{"$f":"SUMPRODUCT(($M7>=$D7:$K7)*(L8<=$D8:$K8))","v":4},null,null,null,null,null,null,null,null,null,null,null,null,null,null,null,null,null,null,null,null,null,null,null,null,null,null,null,null,null,null,null,null,null,null,null,null,null,null,null,null,null,null,null,null,null,null,null,null,null,null,null,null,null,null,null,null,null,null,null,null,null,null,null,null,null,null,null,null,null,null,null,null,null,null,null,null,null,null,null,null,null,null,null,"03:00:00","18:00:00"]
[null,null,"soir",0.75,0.75,"Congé payé",0.75,0.75,0.75,0.75,0.75,null,"19:00:00",null,null,null,null,null,null,null,null,null,null,null,null,null,null,null,null,null,null,null,null,null,null,null,null,null,null,null,null,null,null,null,null,null,null,null,null,null,null,null,null,null,null,null,null,null,null,null,null,null,null,null,null,null,null,null,null,null,null,null,null,null,null,null,null,null,null,null,null,null,null,null,null,null,null,null,null,null,null,null,null,null,null,null,null,"03:30:00","18:30:00"]
[null,null,null,0.91666666666666696,0.91666666666666696,"Congé payé",0.91666666666666696,0.91666666666666696,0.91666666666666696,0.91666666666666696,0.91666666666666696,null,"22:00:00",{"$f":"SUMPRODUCT(($M9>=$D9:$K9)*(L10<=$D10:$K10))","v":7},null,null,null,null,null,null,null,null,null,null,null,null,null,null,null,null,null,null,null,null,null,null,null,null,null,null,null,null,null,null,null,null,null,null,null,null,null,null,null,null,null,null,null,null,null,null,null,null,null,null,null,null,null,null,null,null,null,null,null,null,null,null,null,null,null,null,null,null,null,null,null,null,null,null,null,null,null,null,null,null,null,null,null,"04:00:00","19:00:00"]
[null,null,"matin",0.375,0.375,"Congé payé","Repos","Repos","Repos",0.375,0.375,null,"08:00:00",null,null,null,null,null,null,null,null,null,null,null,null,null,null,null,null,null,null,null,null,null,null,null,null,null,null,null,null,null,null,null,null,null,null,null,null,null,null,null,null,null,null,null,null,null,null,null,null,null,null,null,null,null,null,null,null,null,null,null,null,null,null,null,null,null,null,null,null,null,null,null,null,null,null,null,null,null,null,null,null,null,null,null,null,"04:30:00","19:30:00"]
[null,{"$f":"B8+1","v":"2015-06-03"},null,0.58333333333333304,0.58333333333333304,"Congé payé","Repos","Repos","Repos",0.58333333333333304,0.58333333333333304,null,"10:00:00",{"$f":"SUMPRODUCT(($M11>=$D11:$K11)*(L12<=$D12:$K12))","v":0},null,null,null,null,null,null,null,null,null,null,null,null,null,null,null,null,null,null,null,null,null,null,null,null,null,null,null,null,null,null,null,null,null,null,null,null,null,null,null,null,null,null,null,null,null,null,null,null,null,null,null,null,null,null,null,null,null,null,null,null,null,null,null,null,null,null,null,null,null,null,null,null,null,null,null,null,null,null,null,null,null,null,null,"05:00:00","20:00:00"]
[null,null,"soir",0.72916666666666663,0.72916666666666696,"Congé payé","Repos","Repos",0.66666666666666696,0.72916666666666663,0.72916666666666663,null,"17:00:00",null,null,null,null,null,null,null,null,null,null,null,null,null,null,null,null,null,null,null,null,null,null,null,null,null,null,null,null,null,null,null,null,null,null,null,null,null,null,null,null,null,null,null,null,null,null,null,null,null,null,null,null,null,null,null,null,null,null,null,null,null,null,null,null,null,null,null,null,null,null,null,null,null,null,null,null,null,null,null,null,null,null,null,null,"05:30:00","20:30:00"]
[null,null,null,0.91666666666666696,0.91666666666666696,"Congé payé","Repos","Repos",0.95833333333333304,0.91666666666666696,0.91666666666666696,null,"22:00:00",{"$f":"SUMPRODUCT(($M13>=$D13:$K13)*(L14<=$D14:$K14))","v":1},null,null,null,null,null,null,null,null,null,null,null,null,null,null,null,null,null,null,null,null,null,null,null,null,null,null,null,null,null,null,null,null,null,null,null,null,null,null,null,null,null,null,null,null,null,null,null,null,null,null,null,null,null,null,null,null,null,null,null,null,null,null,null,null,null,null,null,null,null,null,null,null,null,null,null,null,null,null,null,null,null,null,null,"06:30:00","21:00:00"]
[null,null,"matin",0.41666666666666702,0.41666666666666702,0.41666666666666702,0.41666666666666702,0.41666666666666702,0.41666666666666702,"Repos",0.41666666666666702,null,"12:00:00",null,null,null,null,null,null,null,null,null,null,null,null,null,null,null,null,null,null,null,null,null,null,null,null,null,null,null,null,null,null,null,null,null,null,null,null,null,null,null,null,null,null,null,null,null,null,null,null,null,null,null,null,null,null,null,null,null,null,null,null,null,null,null,null,null,null,null,null,null,null,null,null,null,null,null,null,null,null,null,null,null,null,null,null,"07:00:00","21:30:00"]
[null,{"$f":"B12+1","v":"2015-06-04"},null,0.58333333333333304,0.58333333333333304,0.58333333333333304,0.58333333333333304,0.58333333333333304,0.58333333333333304,"Repos",0.58333333333333304,null,"14:00:00",{"$f":"SUMPRODUCT(($M15>=$D15:$K15)*(L16<=$D16:$K16))","v":7},null,null,null,null,null,null,null,null,null,null,null,null,null,null,null,null,null,null,null,null,null,null,null,null,null,null,null,null,null,null,null,null,null,null,null,null,null,null,null,null,null,null,null,null,null,null,null,null,null,null,null,null,null,null,null,null,null,null,null,null,null,null,null,null,null,null,null,null,null,null,null,null,null,null,null,null,null,null,null,null,null,null,null,"07:30:00","22:00:00"]
["Légende",null,"soir",0.75,0.75,0.75,0.75,0.75,0.75,"Repos",0.75,null,"19:00:00",null,null,null,null,null,null,null,null,null,null,null,null,null,null,null,null,null,null,null,null,null,null,null,null,null,null,null,null,null,null,null,null,null,null,null,null,null,null,null,null,null,null,null,null,null,null,null,null,null,null,null,null,null,null,null,null,null,null,null,null,null,null,null,null,null,null,null,null,null,null,null,null,null,null,null,null,null,null,null,null,null,null,null,null,"08:00:00","22:30:00"]
["Repos hebdomadaire",null,null,0.91666666666666696,0.91666666666666696,0.91666666666666696,0.91666666666666696,0.91666666666666696,0.91666666666666696,"Repos",0.91666666666666696,null,"22:00:00",{"$f":"SUMPRODUCT(($M17>=$D17:$K17)*(L18<=$D18:$K18))","v":7},null,null,null,null,null,null,null,null,null,null,null,null,null,null,null,null,null,null,null,null,null,null,null,null,null,null,null,null,null,null,null,null,null,null,null,null,null,null,null,null,null,null,null,null,null,null,null,null,null,null,null,null,null,null,null,null,null,null,null,null,null,null,null,null,null,null,null,null,null,null,null,null,null,null,null,null,null,null,null,null,null,null,null,"08:30:00","23:00:00"]
["Récupération",null,"matin","Repos",0.375,0.375,0.375,0.375,0.375,0.375,0.375,null,"08:00:00",null,null,null,null,null,null,null,null,null,null,null,null,null,null,null,null,null,null,null,null,null,null,null,null,null,null,null,null,null,null,null,null,null,null,null,null,null,null,null,null,null,null,null,null,null,null,null,null,null,null,null,null,null,null,null,null,null,null,null,null,null,null,null,null,null,null,null,null,null,null,null,null,null,null,null,null,null,null,null,null,null,null,null,null,"09:00:00","23:30:00"]
["Congé payé",{"$f":"B16+1","v":"2015-06-05"},null,"Repos",0.58333333333333304,0.58333333333333304,0.58333333333333304,0.58333333333333304,0.58333333333333304,0.58333333333333304,0.58333333333333304,null,"10:00:00",{"$f":"SUMPRODUCT(($M19>=$D19:$K19)*(L20<=$D20:$K20))","v":0},null,null,null,null,null,null,null,null,null,null,null,null,null,null,null,null,null,null,null,null,null,null,null,null,null,null,null,null,null,null,null,null,null,null,null,null,null,null,null,null,null,null,null,null,null,null,null,null,null,null,null,null,null,null,null,null,null,null,null,null,null,null,null,null,null,null,null,null,null,null,null,null,null,null,null,null,null,null,null,null,null,null,null,"09:30:00","Repos"]
["Ecole",null,"soir","Repos",0.72916666666666663,0.72916666666666663,0.72916666666666663,0.72916666666666663,0.72916666666666663,0.72916666666666663,0.72916666666666663,null,"17:00:00",null,null,null,null,null,null,null,null,null,null,null,null,null,null,null,null,null,null,null,null,null,null,null,null,null,null,null,null,null,null,null,null,null,null,null,null,null,null,null,null,null,null,null,null,null,null,null,null,null,null,null,null,null,null,null,null,null,null,null,null,null,null,null,null,null,null,null,null,null,null,null,null,null,null,null,null,null,null,null,null,null,null,null,null,"10:00:00","Congé payé"]
["Maladie","MARIAGE",null,"Repos",0.91666666666666696,0.91666666666666696,0.91666666666666696,0.91666666666666696,0.91666666666666696,0.91666666666666696,0.91666666666666696,null,"22:00:00",{"$f":"SUMPRODUCT(($M21>=$D21:$K21)*(L22<=$D22:$K22))","v":0},null,null,null,null,null,null,null,null,null,null,null,null,null,null,null,null,null,null,null,null,null,null,null,null,null,null,null,null,null,null,null,null,null,null,null,null,null,null,null,null,null,null,null,null,null,null,null,null,null,null,null,null,null,null,null,null,null,null,null,null,null,null,null,null,null,null,null,null,null,null,null,null,null,null,null,null,null,null,null,null,null,null,null,"10:30:00","Récupération"]
[null,null,"matin",0.375,0.41666666666666702,0.41666666666666702,0.41666666666666702,0.41666666666666702,0.41666666666666702,0.41666666666666702,0.41666666666666702,null,"12:00:00",null,null,null,null,null,null,null,null,null,null,null,null,null,null,null,null,null,null,null,null,null,null,null,null,null,null,null,null,null,null,null,null,null,null,null,null,null,null,null,null,null,null,null,null,null,null,null,null,null,null,null,null,null,null,null,null,null,null,null,null,null,null,null,null,null,null,null,null,null,null,null,null,null,null,null,null,null,null,null,null,null,null,null,null,"11:00:00","Maladie"]
[null,{"$f":"B20+1","v":"2015-06-06"},null,0.66666666666666596,0.58333333333333304,0.58333333333333304,0.58333333333333304,0.58333333333333304,0.58333333333333304,0.58333333333333304,0.58333333333333304,null,"14:00:00",{"$f":"SUMPRODUCT(($M23>=$D23:$K23)*(L24<=$D24:$K24))","v":8},null,null,null,null,null,null,null,null,null,null,null,null,null,null,null,null,null,null,null,null,null,null,null,null,null,null,null,null,null,null,null,null,null,null,null,null,null,null,null,null,null,null,null,null,null,null,null,null,null,null,null,null,null,null,null,null,null,null,null,null,null,null,null,null,null,null,null,null,null,null,null,null,null,null,null,null,null,null,null,null,null,null,null,"11:30:00","Ecole"]
[null,null,"soir",0.75,0.75,0.75,0.75,0.75,0.75,0.75,0.75,null,"19:00:00",null,null,null,null,null,null,null,null,null,null,null,null,null,null,null,null,null,null,null,null,null,null,null,null,null,null,null,null,null,null,null,null,null,null,null,null,null,null,null,null,null,null,null,null,null,null,null,null,null,null,null,null,null,null,null,null,null,null,null,null,null,null,null,null,null,null,null,null,null,null,null,null,null,null,null,null,null,null,null,null,null,null,null,null,"12:00:00"]
[null,"MARIAGE",null,0.91666666666666696,0.91666666666666696,0.91666666666666696,0.91666666666666696,0.91666666666666696,0.91666666666666696,0.91666666666666696,0.91666666666666696,null,"22:00:00",{"$f":"SUMPRODUCT(($M25>=$D25:$K25)*(L26<=$D26:$K26))","v":8},null,null,null,null,null,null,null,null,null,null,null,null,null,null,null,null,null,null,null,null,null,null,null,null,null,null,null,null,null,null,null,null,null,null,null,null,null,null,null,null,null,null,null,null,null,null,null,null,null,null,null,null,null,null,null,null,null,null,null,null,null,null,null,null,null,null,null,null,null,null,null,null,null,null,null,null,null,null,null,null,null,null,null,"12:30:00"]
[null,null,"matin",0.375,0.375,0.375,0.375,0.375,0.375,"Repos",0.375,null,"12:00:00",null,null,null,null,null,null,null,null,null,null,null,null,null,null,null,null,null,null,null,null,null,null,null,null,null,null,null,null,null,null,null,null,null,null,null,null,null,null,null,null,null,null,null,null,null,null,null,null,null,null,null,null,null,null,null,null,null,null,null,null,null,null,null,null,null,null,null,null,null,null,null,null,null,null,null,null,null,null,null,null,null,null,null,null,"13:00:00"]
[null,{"$f":"B24+1","v":"2015-06-07"},null,0.58333333333333304,0.58333333333333304,0.58333333333333304,0.58333333333333304,0.58333333333333304,0.58333333333333304,"Repos",0.58333333333333304,null,"14:00:00",{"$f":"SUMPRODUCT(($M27>=$D27:$K27)*(L28<=$D28:$K28))","v":7},null,null,null,null,null,null,null,null,null,null,null,null,null,null,null,null,null,null,null,null,null,null,null,null,null,null,null,null,null,null,null,null,null,null,null,null,null,null,null,null,null,null,null,null,null,null,null,null,null,null,null,null,null,null,null,null,null,null,null,null,null,null,null,null,null,null,null,null,null,null,null,null,null,null,null,null,null,null,null,null,null,null,null,"13:30:00"]
[null,null,"soir","Repos","Repos","Repos","Repos","Repos","Repos","Repos","Repos",null,"19:00:00",null,null,null,null,null,null,null,null,null,null,null,null,null,null,null,null,null,null,null,null,null,null,null,null,null,null,null,null,null,null,null,null,null,null,null,null,null,null,null,null,null,null,null,null,null,null,null,null,null,null,null,null,null,null,null,null,null,null,null,null,null,null,null,null,null,null,null,null,null,null,null,null,null,null,null,null,null,null,null,null,null,null,null,null,"14:00:00"]
[null,"MARIAGE",null,"Repos","Repos","Repos","Repos","Repos","Repos","Repos","Repos",null,"22:00:00",{"$f":"SUMPRODUCT(($M29>=$D29:$K29)*(L30<=$D30:$K30))","v":0},null,null,null,null,null,null,null,null,null,null,null,null,null,null,null,null,null,null,null,null,null,null,null,null,null,null,null,null,null,null,null,null,null,null,null,null,null,null,null,null,null,null,null,null,null,null,null,null,null,null,null,null,null,null,null,null,null,null,null,null,null,null,null,null,null,null,null,null,null,null,null,null,null,null,null,null,null,null,null,null,null,null,null,"14:30:00"]
[null,null,null,null,null,null,null,null,null,null,null,null,null,null,null,null,null,null,null,null,null,null,null,null,null,null,null,null,null,null,null,null,null,null,null,null,null,null,null,null,null,null,null,null,null,null,null,null,null,null,null,null,null,null,null,null,null,null,null,null,null,null,null,null,null,null,null,null,null,null,null,null,null,null,null,null,null,null,null,null,null,null,null,null,null,null,null,null,null,null,null,null,null,null,null,null,null,"15:00:00"]
[null,"Total heures réelles",null,null,null,null,null,null,null,null,null,null,null,null,null,null,null,null,null,null,null,null,null,null,null,null,null,null,null,null,null,null,null,null,null,null,null,null,null,null,null,null,null,null,null,null,null,null,null,null,null,null,null,null,null,null,null,null,null,null,null,null,null,null,null,null,null,null,null,null,null,null,null,null,null,null,null,null,null,null,null,null,null,null,null,null,null,null,null,null,null,null,null,null,null,null,null,"15:30:00"]
[null,"Total heures sup.",null,null,null,null,null,null,null,null,null,null,null,null,null,null,null,null,null,null,null,null,null,null,null,null,null,null,null,null,null,null,null,null,null,null,null,null,null,null,null,null,null,null,null,null,null,null,null,null,null,null,null,null,null,null,null,null,null,null,null,null,null,null,null,null,null,null,null,null,null,null,null,null,null,null,null,null,null,null,null,null,null,null,null,null,null,null,null,null,null,null,null,null,null,null,null,"16:00:00"]
[null,"Heures semaine dernière à récupérer",null,null,null,null,null,null,null,null,null,null,{"$f":"IF(M32>39/24,M32-39/24,\"\")","v":""},"","","","","","","","","","",null,null,null,null,null,null,null,null,null,null,null,null,null,null,null,null,null,null,null,null,null,null,null,null,null,null,null,null,null,null,null,null,null,null,null,null,null,null,null,null,null,null,null,null,null,null,null,null,null,null,null,null,null,null,null,null,null,null,null,null,null,null,null,null,null,null,null,null,null,null,null,null,null,null,"Repos"]
[null,"Solde (à récupérer semaine suivante)",null,null,null,null,null,null,null,null,null,null,null,null,null,null,null,null,null,null,null,null,null,null,null,null,null,null,null,null,null,null,null,null,null,null,null,null,null,null,null,null,null,null,null,null,null,null,null,null,null,null,null,null,null,null,null,null,null,null,null,null,null,null,null,null,null,null,null,null,null,null,null,null,null,null,null,null,null,null,null,null,null,null,null,null,null,null,null,null,null,null,null,null,null,null,null,"Congé payé"]
[null,null,null,null,null,null,null,null,null,null,null,null,null,null,null,null,null,null,null,null,null,null,null,null,null,null,null,null,null,null,null,null,null,null,null,null,null,null,null,null,null,null,null,null,null,null,null,null,null,null,null,null,null,null,null,null,null,null,null,null,null,null,null,null,null,null,null,null,null,null,null,null,null,null,null,null,null,null,null,null,null,null,null,null,null,null,null,null,null,null,null,null,null,null,null,null,null,"Récupération"]
[null,"Nombre de repas",null,null,null,null,null,null,null,null,null,null,null,null,null,null,null,null,null,null,null,null,null,null,null,null,null,null,null,null,null,null,null,null,null,null,null,null,null,null,null,null,null,null,null,null,null,null,null,null,null,null,null,null,null,null,null,null,null,null,null,null,null,null,null,null,null,null,null,null,null,null,null,null,null,null,null,null,null,null,null,null,null,null,null,null,null,null,null,null,null,null,null,null,null,null,null,"Maladie"]
[null,null,null,null,null,null,null,null,null,null,null,null,null,null,null,null,null,null,null,null,null,null,null,null,null,null,null,null,null,null,null,null,null,null,null,null,null,null,null,null,null,null,null,null,null,null,null,null,null,null,null,null,null,null,null,null,null,null,null,null,null,null,null,null,null,null,null,null,null,null,null,null,null,null,null,null,null,null,null,null,null,null,null,null,null,null,null,null,null,null,null,null,null,null,null,null,null,"Ecole"]
[]
[null,"Signature"]
[]
[]
[null,null,"Présents"]
[null,null,"07:00-11:00","12:00-14:00","15:00-17:00","19:00-22:00"]
[null,{"$f":"B4","v":"2015-06-01"}]
[]
[]
[]
[null,{"$f":"B8","v":"2015-06-02"}]
[]
[]
[]
[null,{"$f":"B12","v":"2015-06-03"}]
[]
[]
[]
[null,{"$f":"B16","v":"2015-06-04"}]
[]
[]
[]
[null,{"$f":"B20","v":"2015-06-05"}]
[]
[]
[]
[null,{"$f":"B24","v":"2015-06-06"}]
[]
[]
[]
[null,{"$f":"B28","v":"2015-06-07"}]